bitfinex/quotes_BTCUSD_20240101
["timestamp","ask_amount","ask_price","bid_price","bid_amount"]
[1704125589113,0.06348,42886.0,42885.0,0.00442644]
[1704125589338,0.27821519,42886.0,42885.0,0.05037304]
[1704125589544,0.51473519,42886.0,42885.0,0.05037304]
[1704125590167,0.55961519,42886.0,42885.0,0.05037304]
[1704125590380,0.56361519,42886.0,42885.0,0.05037304]
[1704125590766,0.51873519,42886.0,42885.0,0.05037304]
[1704125590981,0.56463519,42886.0,42885.0,0.05037304]
[1704125591383,0.56963519,42886.0,42885.0,0.05037304]
[1704125591581,0.56963519,42886.0,42885.0,0.00442644]
[1704125591803,0.56963519,42886.0,42885.0,0.05037304]
[1704125592602,0.45805246,42886.0,42885.0,0.05037304]
[1704125592743,0.56982751,42886.0,42884.0,0.05037304]
[1704125592982,0.323,42885.0,42884.0,0.05037304]
[1704125593191,0.59808379,42885.0,42884.0,0.05037304]
[1704125594655,0.59808379,42885.0,42884.0,0.00442644]
[1704125594860,0.72689869,42885.0,42881.0,0.0459466]
[1704125595085,0.05589564,42883.0,42881.0,0.0459466]
[1704125595291,0.35589564,42883.0,42882.0,0.0459466]
[1704125595491,0.3,42883.0,42882.0,0.05037304]
[1704125595691,0.32138,42883.0,42881.0,0.0459466]
[1704125595978,0.05178,42882.0,42881.0,0.0459466]
[1704125596177,0.05178,42882.0,42881.0,0.00442644]
[1704125596178,0.1076795,42882.0,42881.0,0.00442644]
[1704125596383,0.1306795,42882.0,42879.0,0.0459466]
[1704125596580,0.1306795,42882.0,42881.0,0.05037304]
[1704125596581,0.1076795,42882.0,42881.0,0.05037304]
[1704125596827,0.1306795,42882.0,42881.0,0.05037304]
[1704125597166,0.5970755,42882.0,42881.0,0.05037304]
[1704125597398,0.541176,42882.0,42881.0,0.05037304]
[1704125597652,0.68248892,42882.0,42881.0,0.05037304]
[1704125597890,0.98248892,42882.0,42881.0,0.0459466]
[1704125598171,1.00600892,42882.0,42877.0,0.2167]
[1704125598409,1.08985238,42882.0,42881.0,0.0469466]
[1704125598635,1.08985238,42882.0,42881.0,0.05137304]
[1704125598636,1.01455238,42882.0,42881.0,0.05137304]
[1704125598860,1.07767238,42882.0,42881.0,0.05137304]
[1704125600744,1.07767238,42882.0,42881.0,0.0469466]
[1704125601205,1.07767238,42882.0,42881.0,0.001]
[1704125601206,1.23521107,42882.0,42881.0,0.001]
[1704125601428,1.09573265,42882.0,42881.0,0.001]
[1704125601671,1.09573265,42882.0,42881.0,0.002]
[1704125602142,1.56212865,42882.0,42881.0,0.0479466]
[1704125602569,1.56212865,42882.0,42881.0,0.002]
[1704125604335,2.04939916,42882.0,42881.0,0.002]
[1704125604560,2.08005916,42882.0,42881.0,0.002]
[1704125604768,2.2473927,42882.0,42881.0,0.002]
[1704125605416,2.78005916,42882.0,42881.0,0.002]
[1704125605660,2.50860405,42882.0,42881.0,0.002]
[1704125605905,2.97500005,42882.0,42881.0,0.002]
[1704125606906,3.12520225,42882.0,42881.0,0.002]
[1704125607170,3.05902871,42882.0,42881.0,0.002]
[1704125607540,2.96524871,42882.0,42881.0,0.002]
[1704125607754,2.98281257,42882.0,42881.0,0.002]
[1704125608847,3.07353257,42882.0,42881.0,0.002]
[1704125609255,2.60713657,42882.0,42881.0,0.002]
[1704125609463,2.90576651,42882.0,42881.0,0.002]
[1704125609673,2.81504651,42882.0,42881.0,0.002]
[1704125610011,2.98281257,42882.0,42881.0,0.002]
[1704125610377,2.81504651,42882.0,42881.0,0.002]
[1704125611223,2.91146651,42882.0,42881.0,0.002]
[1704125611571,2.44507051,42882.0,42881.0,0.002]
[1704125611813,3.38343607,42882.0,42881.0,0.002]
[1704125611980,3.55120213,42882.0,42881.0,0.002]
[1704125612421,3.28701607,42882.0,42881.0,0.001]
[1704125612842,0.10557356,42881.0,42877.0,0.2334]
[1704125613053,0.13968988,42879.0,42877.0,0.2334]
[1704125613262,0.90118116,42878.0,42877.0,0.2334]
[1704125613491,1.06158489,42878.0,42877.0,0.2334]
[1704125614446,1.08953261,42878.0,42877.0,0.2334]
[1704125615065,0.94984273,42878.0,42877.0,0.2334]
[1704125615283,0.62309361,42878.0,42877.0,0.2334]
[1704125615505,0.65643361,42878.0,42877.0,0.2334]
[1704125615715,2.08166809,42878.0,42874.0,0.0459466]
[1704125615944,0.5223324,42875.0,42874.0,0.27297304]
[1704125616144,0.57326261,42875.0,42874.0,0.27297304]
[1704125616352,0.94286261,42875.0,42874.0,0.2226]
[1704125616556,0.94286261,42875.0,42874.0,0.22702644]
[1704125616967,0.94286261,42875.0,42874.0,0.2226]
[1704125617173,1.06738727,42875.0,42874.0,0.2266]
[1704125617393,1.53385927,42875.0,42874.0,0.2266]
[1704125617605,1.40931818,42875.0,42874.0,0.23102644]
[1704125617816,1.53339772,42875.0,42874.0,0.23102644]
[1704125618596,1.66033236,42875.0,42874.0,0.23102644]
[1704125619691,1.66033236,42875.0,42874.0,0.23502644]
[1704125620241,1.66033236,42875.0,42874.0,0.2306]
[1704125620458,1.56419945,42875.0,42874.0,0.2306]
[1704125620646,1.65994713,42875.0,42874.0,0.2306]
[1704125621169,1.65994713,42875.0,42874.0,0.23502644]
[1704125621170,1.45247864,42875.0,42874.0,0.23502644]
[1704125621381,1.53622658,42875.0,42874.0,0.23502644]
[1704125621590,1.53622845,42875.0,42874.0,0.23502644]
[1704125621783,1.45247864,42875.0,42874.0,0.23502644]
[1704125622399,1.53622288,42875.0,42874.0,0.23502644]
[1704125624227,1.53622288,42875.0,42874.0,0.28097304]
[1704125624228,0.94281624,42875.0,42874.0,0.28097304]
[1704125624437,0.836632,42875.0,42874.0,0.28097304]
[1704125625269,0.789472,42875.0,42874.0,0.28097304]
[1704125625647,0.789472,42875.0,42874.0,0.2765466]
[1704125625860,0.789472,42875.0,42874.0,0.28097304]
[1704125626519,0.86558036,42875.0,42874.0,0.28097304]
[1704125626728,0.79404036,42875.0,42874.0,0.28097304]
[1704125626944,0.32756836,42875.0,42874.0,0.28097304]
[1704125627161,0.02756836,42875.0,42874.0,0.52246547]
[1704125627405,0.02760735,42882.0,42881.0,0.0459466]
[1704125627618,0.466387,42883.0,42881.0,0.05037304]
[1704125627832,0.466387,42883.0,42882.0,0.05037304]
[1704125628036,0.466387,42883.0,42882.0,0.05858324]
[1704125628475,0.466345,42887.0,42886.0,0.05037304]
[1704125629343,0.49442562,42887.0,42886.0,0.05037304]
[1704125629985,0.54520562,42887.0,42886.0,0.05037304]
[1704125630199,0.49642562,42887.0,42886.0,0.05037304]
[1704125630413,0.42642562,42887.0,42886.0,0.05037304]
[1704125630636,0.72642562,42887.0,42886.0,0.05037304]
[1704125635621,0.72642562,42887.0,42886.0,0.0459466]
[1704125635830,0.72642562,42887.0,42886.0,0.05037304]
[1704125637099,0.72642562,42887.0,42886.0,0.05852066]
[1704125639409,0.72642562,42887.0,42886.0,0.05844094]
[1704125642171,0.32808062,42887.0,42886.0,0.05844094]
[1704125642423,0.49642562,42887.0,42886.0,0.05844094]
[1704125642607,0.79642562,42887.0,42886.0,0.05844094]
[1704125644967,0.86002562,42887.0,42886.0,0.05844094]
[1704125645397,0.86002562,42887.0,42886.0,0.05029332]
[1704125646477,1.34937062,42887.0,42886.0,0.05029332]
[1704125648627,0.88302562,42887.0,42886.0,0.05029332]
[1704125648889,1.34937062,42887.0,42886.0,0.05029332]
[1704125652180,0.88302562,42887.0,42886.0,0.05029332]
[1704125652402,1.34937062,42887.0,42886.0,0.05029332]
[1704125652616,1.28577062,42887.0,42886.0,0.05029332]
[1704125652833,1.28576662,42887.0,42886.0,0.05029332]
[1704125654799,1.28576662,42887.0,42886.0,0.04586688]
[1704125654800,1.33934662,42887.0,42886.0,0.04586688]
[1704125655030,1.33934662,42887.0,42886.0,0.05029332]
[1704125656703,1.28576662,42887.0,42886.0,0.05029332]
[1704125658424,0.79642162,42887.0,42886.0,0.05029332]
[1704125658843,0.79642162,42887.0,42886.0,0.05845665]
[1704125659244,0.79442162,42887.0,42886.0,0.05845665]
[1704125659701,0.79642162,42887.0,42886.0,0.05845665]
[1704125659912,0.79442162,42887.0,42886.0,0.05845665]
[1704125660513,0.79442162,42887.0,42886.0,0.05945665]
[1704125661583,0.85616162,42887.0,42886.0,0.05945665]
[1704125661963,0.85616162,42887.0,42886.0,0.05129332]
[1704125661964,0.79442162,42887.0,42886.0,0.05129332]
[1704125662168,0.79442162,42887.0,42886.0,0.05944162]
[1704125665331,0.32808062,42887.0,42886.0,0.49265873]
[1704125665553,0.79442162,42887.0,42886.0,0.05944162]
[1704125665761,0.75442162,42887.0,42886.0,0.05944162]
[1704125670427,0.78179398,42887.0,42886.0,0.05944162]
[1704125670643,0.32737236,42887.0,42886.0,0.49265873]
[1704125672220,0.02737236,42887.0,42886.0,0.49265873]
[1704125672642,0.3,42889.0,42886.0,0.49265873]
[1704125672910,0.3,42889.0,42888.0,0.05029332]
[1704125673131,0.35576417,42889.0,42888.0,0.28351043]
[1704125673347,0.35576417,42889.0,42888.0,0.48351043]
[1704125673555,0.35576417,42889.0,42888.0,0.49162637]
[1704125673979,0.3832058,42889.0,42888.0,0.49162637]
[1704125674240,0.3832058,42889.0,42888.0,0.59162637]
[1704125674241,0.32744163,42889.0,42888.0,0.59162637]
[1704125674460,0.02744163,42889.0,42888.0,0.59162637]
[1704125674670,0.02944163,42889.0,42888.0,0.59162637]
[1704125674880,0.002,42889.0,42888.0,0.59162637]
[1704125675541,0.466277,42893.0,42892.0,0.04586688]
[1704125675752,0.05576417,42896.0,42895.0,0.04586688]
[1704125675968,0.08364626,42896.0,42895.0,0.05029332]
[1704125676179,0.756913,42896.0,42895.0,0.05029332]
[1704125676393,0.756913,42896.0,42895.0,0.05835615]
[1704125676617,1.19282104,42896.0,42895.0,0.05029332]
[1704125676855,1.19232886,42896.0,42895.0,0.05029332]
[1704125677089,1.13796886,42896.0,42895.0,0.05029332]
[1704125677321,1.13796886,42896.0,42893.0,0.05029332]
[1704125677322,1.04668512,42896.0,42893.0,0.05029332]
[1704125677546,1.04668512,42896.0,42893.0,0.04586688]
[1704125677547,0.5501129,42894.0,42893.0,0.04586688]
[1704125677781,0.68472713,42894.0,42893.0,0.05029332]
[1704125677987,1.14725537,42894.0,42893.0,0.05029332]
[1704125678221,1.19909537,42894.0,42893.0,0.05029332]
[1704125678520,1.08729817,42894.0,42893.0,0.05029332]
[1704125678967,1.08929817,42894.0,42893.0,0.05029332]
[1704125679445,1.08929817,42894.0,42893.0,0.04586688]
[1704125679446,1.22904511,42894.0,42893.0,0.04586688]
[1704125679650,1.28066864,42894.0,42893.0,0.04686688]
[1704125679864,0.79406364,42894.0,42893.0,0.05129332]
[1704125680066,0.73394364,42894.0,42893.0,0.05129332]
[1704125680204,1.23102864,42894.0,42893.0,0.04686688]
[1704125680418,1.09127817,42894.0,42893.0,0.04686688]
[1704125680640,1.09127817,42894.0,42893.0,0.04586688]
[1704125680641,0.76475964,42894.0,42893.0,0.04586688]
[1704125680846,1.23102464,42894.0,42893.0,0.04586688]
[1704125681048,1.27976464,42894.0,42893.0,0.04586688]
[1704125681271,1.14001817,42894.0,42893.0,0.04586688]
[1704125681655,1.27976467,42894.0,42893.0,0.04586688]
[1704125682173,1.14001817,42894.0,42893.0,0.04586688]
[1704125688240,1.2797753,42894.0,42893.0,0.04586688]
[1704125689004,1.14514003,42894.0,42893.0,0.04586688]
[1704125689204,1.25069746,42894.0,42893.0,0.04586688]
[1704125689642,1.13891067,42894.0,42893.0,0.04586688]
[1704125689888,1.25070472,42894.0,42893.0,0.04586688]
[1704125690306,1.06517648,42894.0,42893.0,0.04586688]
[1704125690718,0.99517648,42894.0,42893.0,0.04586688]
[1704125692251,0.04946,42894.0,42893.0,0.58351043]
[1704125692515,0.002,42894.0,42893.0,0.58351043]
[1704125692712,0.002,42894.0,42893.0,0.59159182]
[1704125693924,0.002,42894.0,42893.0,0.59359182]
[1704125694132,1.13522338,42898.0,42897.0,0.04586688]
[1704125694349,1.43522338,42898.0,42897.0,0.27908399]
[1704125694578,1.43522338,42898.0,42897.0,0.29154926]
[1704125696064,1.43722338,42898.0,42897.0,0.29154926]
[1704125700244,1.43722338,42898.0,42897.0,0.28712282]
[1704125700494,1.43722338,42898.0,42897.0,0.29154926]
[1704125700940,1.90344538,42898.0,42897.0,0.05833215]
[1704125703647,1.90344538,42898.0,42897.0,0.29154926]
[1704125704485,1.43722338,42898.0,42897.0,0.29154926]
[1704125704704,1.43722338,42898.0,42897.0,0.59154926]
[1704125705658,1.43722338,42898.0,42897.0,0.29154926]
[1704125706297,1.43522338,42898.0,42897.0,0.29154926]
[1704125706968,1.43622338,42898.0,42897.0,0.29154926]
[1704125707657,1.90244538,42898.0,42897.0,0.05833215]
[1704125708081,1.90244538,42898.0,42897.0,0.05029332]
[1704125710154,1.43622338,42898.0,42897.0,0.38351043]
[1704125710569,1.43622338,42898.0,42897.0,0.39107543]
[1704125710791,1.43622338,42898.0,42897.0,0.59107543]
[1704125712282,1.13622338,42898.0,42897.0,0.59107543]
[1704125712497,1.13622338,42898.0,42897.0,0.60107543]
[1704125713795,1.13522338,42898.0,42897.0,0.65033543]
[1704125714247,1.13522338,42898.0,42897.0,0.65533543]
[1704125714473,1.13522338,42898.0,42897.0,0.65033543]
[1704125714694,1.13522338,42898.0,42897.0,0.65533543]
[1704125714905,1.13522338,42898.0,42897.0,0.66133543]
[1704125715129,1.13522338,42898.0,42897.0,0.65033543]
[1704125715394,1.13522338,42898.0,42897.0,0.80979543]
[1704125715610,1.13522338,42898.0,42897.0,0.72633543]
[1704125716031,1.13522338,42898.0,42897.0,1.43796843]
[1704125716249,1.13522338,42898.0,42897.0,1.05435543]
[1704125716500,1.13522338,42898.0,42897.0,1.09435543]
[1704125716735,0.90210141,42898.0,42897.0,1.08535543]
[1704125716950,0.90210141,42898.0,42897.0,2.88572843]
[1704125717192,0.90210141,42898.0,42897.0,2.90072843]
[1704125717391,0.90210141,42898.0,42897.0,2.88572843]
[1704125717827,0.90210141,42898.0,42897.0,2.90472843]
[1704125718253,0.90210141,42898.0,42897.0,2.42149543]
[1704125718691,0.90210141,42898.0,42897.0,2.44049543]
[1704125719175,0.90210141,42898.0,42897.0,2.42149543]
[1704125719393,0.90210141,42898.0,42897.0,2.44049543]
[1704125720025,0.90210141,42898.0,42897.0,0.70079543]
[1704125720689,0.90210141,42898.0,42897.0,0.63907543]
[1704125721124,0.90210141,42898.0,42897.0,0.69229543]
[1704125721808,0.90210141,42898.0,42897.0,0.72073543]
[1704125724049,0.90210141,42898.0,42897.0,0.69709543]
[1704125724699,0.90210141,42898.0,42897.0,0.68266899]
[1704125724912,0.90210141,42898.0,42897.0,0.32907543]
[1704125725582,0.90210141,42898.0,42897.0,0.28320855]
[1704125725790,0.90210141,42898.0,42897.0,0.31007543]
[1704125726015,0.90210141,42898.0,42897.0,0.32707543]
[1704125726233,0.90210141,42898.0,42897.0,0.30807543]
[1704125726705,0.90210141,42898.0,42897.0,0.32507543]
[1704125726930,0.90210141,42898.0,42897.0,0.30807543]
[1704125727147,0.90210141,42898.0,42897.0,0.31307543]
[1704125727363,0.90210141,42898.0,42897.0,0.29607543]
[1704125727586,0.90210141,42898.0,42897.0,0.30107543]
[1704125728037,0.90210141,42898.0,42897.0,0.05785832]
[1704125728265,0.90210141,42898.0,42897.0,0.06085832]
[1704125728476,0.90210141,42898.0,42897.0,0.05729332]
[1704125728692,0.90210141,42898.0,42897.0,0.05660421]
[1704125729372,1.36832341,42898.0,42897.0,0.05660421]
[1704125731732,1.36832341,42898.0,42897.0,0.05599893]
[1704125733026,1.66832341,42898.0,42897.0,0.007]
[1704125733268,1.66832341,42898.0,42897.0,0.04886688]
[1704125733269,2.37184213,42898.0,42897.0,0.04886688]
[1704125733478,1.89709711,42898.0,42897.0,0.04899893]
[1704125733680,1.89709711,42898.0,42897.0,0.05399893]
[1704125733893,1.89709711,42898.0,42897.0,0.05899893]
[1704125733894,1.84142013,42898.0,42897.0,0.05899893]
[1704125734097,1.94214109,42898.0,42897.0,0.05399893]
[1704125734322,1.94214109,42898.0,42897.0,0.04899893]
[1704125734579,1.89820109,42898.0,42897.0,0.04999893]
[1704125734785,1.9289356,42898.0,42897.0,0.05099893]
[1704125735001,1.9763556,42898.0,42897.0,0.04999893]
[1704125735215,1.84542013,42898.0,42897.0,0.04999893]
[1704125735428,1.84542013,42898.0,42897.0,0.04686688]
[1704125735657,1.95808922,42898.0,42897.0,0.04999893]
[1704125736089,1.90230013,42898.0,42897.0,0.04999893]
[1704125736304,1.98598531,42898.0,42897.0,0.04999893]
[1704125736508,1.95508483,42898.0,42897.0,0.04899893]
[1704125736712,1.95508483,42898.0,42897.0,0.04999893]
[1704125736713,1.95808483,42898.0,42897.0,0.04999893]
[1704125736931,1.90120483,42898.0,42897.0,0.04999893]
[1704125737167,1.94974483,42898.0,42897.0,0.04999893]
[1704125737386,1.94974754,42898.0,42897.0,0.04999893]
[1704125737613,1.94975532,42898.0,42897.0,0.04999893]
[1704125738558,1.92675532,42898.0,42897.0,0.04999893]
[1704125738784,1.82242013,42898.0,42897.0,0.04999893]
[1704125739471,1.67232341,42898.0,42897.0,0.04999893]
[1704125739729,1.20610141,42898.0,42897.0,0.04999893]
[1704125740618,1.66832341,42898.0,42897.0,0.04899893]
[1704125740836,1.67232341,42898.0,42897.0,0.04899893]
[1704125743088,1.67232341,42898.0,42897.0,0.05610899]
[1704125745774,1.67232341,42898.0,42897.0,0.2893261]
[1704125746470,1.20610141,42898.0,42897.0,0.2893261]
[1704125749741,1.20610141,42898.0,42897.0,0.4893261]
[1704125749979,1.20610141,42898.0,42897.0,0.5893261]
[1704125749980,0.90610141,42898.0,42897.0,0.5893261]
[1704125750163,0.90610141,42898.0,42897.0,0.6557861]
[1704125750595,0.90210141,42898.0,42897.0,0.6557861]
[1704125750800,0.83210141,42898.0,42897.0,0.6557861]
[1704125751057,0.83410141,42898.0,42897.0,0.5993261]
[1704125751281,0.83410141,42898.0,42897.0,0.6654461]
[1704125751282,0.83510141,42898.0,42897.0,0.6654461]
[1704125751933,0.83310141,42898.0,42897.0,0.6654461]
[1704125752152,0.83210141,42898.0,42897.0,0.6654461]
[1704125753232,0.83210141,42898.0,42897.0,0.6714461]
[1704125753440,0.83210141,42898.0,42897.0,0.6724461]
[1704125754108,0.83210141,42898.0,42897.0,0.6804461]
[1704125754322,0.83210141,42898.0,42897.0,0.6954461]
[1704125755429,0.83210141,42898.0,42897.0,0.6982461]
[1704125755633,0.83210141,42898.0,42897.0,0.8252061]
[1704125756049,0.83210141,42898.0,42897.0,0.7286661]
[1704125756690,0.83210141,42898.0,42897.0,0.9740661]
[1704125756905,0.83210141,42898.0,42897.0,1.5584591]
[1704125757135,0.83210141,42898.0,42897.0,1.4632991]
[1704125757783,0.83210141,42898.0,42897.0,1.4482991]
[1704125757993,0.83210141,42898.0,42897.0,1.4102991]
[1704125758205,0.83210141,42898.0,42897.0,1.1603391]
[1704125758842,0.83210141,42898.0,42897.0,2.9000391]
[1704125759036,0.83210141,42898.0,42897.0,2.4338061]
[1704125759230,0.83210141,42898.0,42897.0,2.4310061]
[1704125760077,0.83210141,42898.0,42897.0,2.08513922]
[1704125760536,0.83210141,42898.0,42897.0,2.4310061]
[1704125761157,0.83210141,42898.0,42897.0,2.3750261]
[1704125761403,0.83210141,42898.0,42897.0,2.4296861]
[1704125761828,0.83210141,42898.0,42897.0,0.6899861]
[1704125762251,0.83210141,42898.0,42897.0,0.6353261]
[1704125762651,0.83210141,42898.0,42897.0,0.6958661]
[1704125763732,0.80210141,42898.0,42897.0,0.6958661]
[1704125765233,0.80210141,42898.0,42897.0,1.1620991]
[1704125765471,0.80210141,42898.0,42897.0,1.1884391]
[1704125767672,0.80210141,42898.0,42897.0,2.9281391]
[1704125769008,0.80210141,42898.0,42897.0,3.0199391]
[1704125769213,0.80210141,42898.0,42897.0,2.9330591]
[1704125770505,0.80210141,42898.0,42897.0,2.4437861]
[1704125774751,0.80210141,42898.0,42897.0,2.3750261]
[1704125775370,0.80210141,42898.0,42897.0,2.4268061]
[1704125776022,0.80210141,42898.0,42897.0,2.4638861]
[1704125777085,0.80210141,42898.0,42897.0,2.4277061]
[1704125777497,0.80210141,42898.0,42897.0,2.3750261]
[1704125777704,0.80210141,42898.0,42897.0,2.4345461]
[1704125779561,0.80210141,42898.0,42897.0,0.6948461]
[1704125780162,0.80210141,42898.0,42897.0,1.1610791]
[1704125782273,0.80210141,42898.0,42897.0,1.1899991]
[1704125782673,0.80210141,42898.0,42897.0,2.9296991]
[1704125783111,0.80210141,42898.0,42897.0,2.8959791]
[1704125784190,0.80210141,42898.0,42897.0,2.8412591]
[1704125784423,0.80210141,42898.0,42897.0,2.3750261]
[1704125784632,0.80210141,42898.0,42897.0,2.4271061]
[1704125785778,0.80210141,42898.0,42897.0,0.6874061]
[1704125786377,0.80210141,42898.0,42897.0,0.7112861]
[1704125789883,0.80210141,42898.0,42897.0,1.1775191]
[1704125791865,0.80210141,42898.0,42897.0,0.6872261]
[1704125792080,0.80210141,42898.0,42897.0,0.6353261]
[1704125793720,0.80210141,42898.0,42897.0,0.62219405]
[1704125793940,0.80210141,42898.0,42897.0,0.32219405]
[1704125794160,0.80210141,42898.0,42897.0,0.3253261]
[1704125794380,0.80210141,42898.0,42897.0,0.6253261]
[1704125794591,0.80210141,42898.0,42897.0,0.6353261]
[1704125797864,0.80210141,42898.0,42897.0,0.6945461]
[1704125798074,0.79710141,42898.0,42897.0,0.6945461]
[1704125798297,0.79710141,42898.0,42897.0,0.7208861]
[1704125800943,0.79710141,42898.0,42897.0,0.7006061]
[1704125803341,0.79710141,42898.0,42897.0,0.6353261]
[1704125804754,0.79710141,42898.0,42897.0,0.62219405]
[1704125805259,0.79710141,42898.0,42897.0,0.6353261]
[1704125806118,0.79710141,42898.0,42897.0,0.62219405]
[1704125806360,0.79710141,42898.0,42897.0,0.6353261]
[1704125809202,0.79710141,42898.0,42897.0,0.6872261]
[1704125809415,0.79710141,42898.0,42897.0,0.6353261]
[1704125810522,0.79710141,42898.0,42897.0,0.6980261]
[1704125810948,0.79710141,42898.0,42897.0,0.75349472]
[1704125810949,0.72710141,42898.0,42897.0,0.75349472]
[1704125811193,0.72710141,42898.0,42897.0,1.21972772]
[1704125812305,0.72710141,42898.0,42897.0,2.9039591]
[1704125812545,0.72710141,42898.0,42897.0,2.95942772]
[1704125816795,0.72710141,42898.0,42897.0,2.9039591]
[1704125817169,0.72710141,42898.0,42897.0,2.95946185]
[1704125817582,0.72710141,42898.0,42897.0,2.9039591]
[1704125818001,0.72710141,42898.0,42897.0,2.95946185]
[1704125818207,0.72710141,42898.0,42897.0,3.08552185]
[1704125818405,0.72710141,42898.0,42897.0,1.36882185]
[1704125818613,0.72710141,42898.0,42897.0,1.2189391]
[1704125818854,0.72710141,42898.0,42897.0,1.2391587]
[1704125819020,0.72710141,42898.0,42897.0,1.2161587]
[1704125820872,0.72710141,42898.0,42897.0,0.6908257]
[1704125821095,0.72710141,42898.0,42897.0,0.6836261]
[1704125823719,0.72710141,42898.0,42897.0,0.6353261]
[1704125823945,0.72710141,42898.0,42897.0,0.6836861]
[1704125824426,0.72710141,42898.0,42897.0,0.7045661]
[1704125825197,0.72710141,42898.0,42897.0,0.6353261]
[1704125827157,0.72710141,42898.0,42897.0,0.6916061]
[1704125827574,0.69710141,42898.0,42897.0,0.6916061]
[1704125836041,0.69710141,42898.0,42897.0,0.6353261]
[1704125840488,0.69710141,42898.0,42897.0,0.6878861]
[1704125841085,0.69710141,42898.0,42897.0,0.6353261]
[1704125841317,0.69710141,42898.0,42897.0,0.6874061]
[1704125841972,0.69710141,42898.0,42897.0,0.4253261]
[1704125842179,0.69710141,42898.0,42897.0,0.3253261]
[1704125844351,0.69710141,42898.0,42897.0,0.3073261]
[1704125844568,0.69710141,42898.0,42897.0,0.3223261]
[1704125844786,0.69710141,42898.0,42897.0,0.2893261]
[1704125845177,0.69710141,42898.0,42897.0,0.3123261]
[1704125845609,0.69710141,42898.0,42897.0,0.2973261]
[1704125845834,0.69710141,42898.0,42897.0,0.29419405]
[1704125846042,0.69710141,42898.0,42897.0,0.30219405]
[1704125846688,0.69710141,42898.0,42897.0,0.06897694]
[1704125846923,1.54720505,42898.0,42897.0,0.02311006]
[1704125847201,1.91275388,42898.0,42897.0,0.06186688]
[1704125847420,1.94071443,42898.0,42897.0,0.06186688]
[1704125847645,1.91263828,42898.0,42897.0,0.06186688]
[1704125847865,1.91263828,42898.0,42897.0,0.05386688]
[1704125848294,1.91263828,42898.0,42897.0,0.04586688]
[1704125848524,1.80020111,42898.0,42897.0,0.04586688]
[1704125848735,1.63725707,42898.0,42897.0,0.04186688]
[1704125849184,1.79959038,42898.0,42897.0,0.04086688]
[1704125849407,1.79959038,42898.0,42897.0,0.04186688]
[1704125850493,1.70930054,42898.0,42897.0,0.001]
[1704125850720,1.86242619,42898.0,42897.0,0.001]
[1704125852256,1.73230054,42898.0,42897.0,0.001]
[1704125852487,1.82711291,42898.0,42897.0,0.001]
[1704125854684,1.67649692,42898.0,42897.0,0.001]
[1704125855607,1.81542805,42898.0,42897.0,0.001]
[1704125856324,1.67649692,42898.0,42897.0,0.001]
[1704125856551,1.80531082,42898.0,42897.0,0.001]
[1704125856783,1.73230054,42898.0,42897.0,0.001]
[1704125857003,2.19852254,42898.0,42897.0,0.001]
[1704125857236,2.14271892,42898.0,42897.0,0.001]
[1704125857704,2.19844734,42898.0,42897.0,0.001]
[1704125857920,2.35078058,42898.0,42895.0,0.00313205]
[1704125858134,0.466243,42896.0,42895.0,0.00313205]
[1704125858351,0.89965144,42896.0,42895.0,0.00313205]
[1704125860045,0.90065144,42896.0,42895.0,0.00313205]
[1704125860694,0.826823,42896.0,42895.0,0.00313205]
[1704125861383,0.92209754,42896.0,42895.0,0.00313205]
[1704125862869,0.98305754,42896.0,42895.0,0.00313205]
[1704125864204,0.51681454,42896.0,42895.0,0.00313205]
[1704125864634,0.98305754,42896.0,42895.0,0.00313205]
[1704125865980,0.96691754,42896.0,42895.0,0.00313205]
[1704125866181,0.96691754,42896.0,42892.0,0.04086688]
[1704125866414,0.92209754,42896.0,42895.0,0.00313205]
[1704125866647,0.96691754,42896.0,42895.0,0.00313205]
[1704125866862,0.92209754,42896.0,42895.0,0.00313205]
[1704125867081,0.92209754,42896.0,42895.0,0.04399893]
[1704125867744,0.45585454,42896.0,42895.0,0.04399893]
[1704125867983,0.92209754,42896.0,42895.0,0.04399893]
[1704125869125,0.45585454,42896.0,42895.0,0.04399893]
[1704125869408,0.92209754,42896.0,42895.0,0.00313205]
[1704125871237,0.85209754,42896.0,42895.0,0.00313205]
[1704125872135,0.85209754,42896.0,42895.0,0.04399893]
[1704125874085,0.697243,42896.0,42895.0,0.04399893]
[1704125874308,0.231,42896.0,42895.0,0.27721604]
[1704125874539,0.001,42896.0,42895.0,0.27721604]
[1704125874750,0.301,42896.0,42895.0,0.28348234]
[1704125874972,0.4500733,42896.0,42895.0,0.28348234]
[1704125875439,0.4500733,42896.0,42895.0,0.04399893]
[1704125875882,0.4490733,42896.0,42895.0,0.04399893]
[1704125876097,0.4500733,42896.0,42895.0,0.04399893]
[1704125876531,0.4490733,42896.0,42895.0,0.04399893]
[1704125876731,0.4490733,42896.0,42895.0,0.04599893]
[1704125877596,0.9153163,42896.0,42895.0,0.04599893]
[1704125877812,0.9153163,42896.0,42895.0,0.00513205]
[1704125878059,0.9153163,42896.0,42895.0,0.04799893]
[1704125878486,0.9153163,42896.0,42895.0,0.00713205]
[1704125879119,0.9772963,42896.0,42895.0,0.00713205]
[1704125879827,0.9153163,42896.0,42895.0,0.00713205]
[1704125881301,0.9822763,42896.0,42895.0,0.00713205]
[1704125882444,0.9822763,42896.0,42895.0,0.00513205]
[1704125882652,0.9832763,42896.0,42895.0,0.00513205]
[1704125883085,0.9822763,42896.0,42895.0,0.00513205]
[1704125883333,0.9832763,42896.0,42895.0,0.00313205]
[1704125883535,1.03900472,42896.0,42895.0,0.00313205]
[1704125884382,1.04000472,42896.0,42895.0,0.00313205]
[1704125884523,0.9842763,42896.0,42895.0,0.00313205]
[1704125884975,1.06703645,42896.0,42895.0,0.00313205]
[1704125885180,1.06803645,42896.0,42895.0,0.00313205]
[1704125886544,1.20644299,42896.0,42895.0,0.00313205]
[1704125887571,1.23451914,42896.0,42895.0,0.00313205]
[1704125888192,1.70076214,42896.0,42895.0,0.00313205]
[1704125888661,1.80076214,42896.0,42895.0,0.00313205]
[1704125888907,1.82376214,42896.0,42895.0,0.00313205]
[1704125889672,1.6839594,42896.0,42895.0,0.00313205]
[1704125889870,1.5839594,42896.0,42895.0,0.00313205]
[1704125891521,1.6839594,42896.0,42895.0,0.00313205]
[1704125892116,1.74309252,42896.0,42895.0,0.00313205]
[1704125898122,0.1,42893.0,42888.0,0.04399893]
[1704125898293,0.1,42893.0,42881.0,0.05]
[1704125898294,0.1,42887.0,42882.0,0.04086688]
[1704125898535,0.08393743,42884.0,42883.0,0.00313205]
[1704125898697,0.11191658,42885.0,42884.0,0.00313205]
[1704125898897,0.13989572,42886.0,42885.0,0.00313205]
[1704125899094,1.01443157,42886.0,42885.0,0.00313205]
[1704125899306,0.93213585,42886.0,42885.0,0.00313205]
[1704125899580,0.93213585,42886.0,42882.0,0.2245]
[1704125899581,0.1,42884.0,42882.0,0.2245]
[1704125899798,0.1,42884.0,42879.0,0.04086688]
[1704125899799,0.55028396,42883.0,42879.0,0.04086688]